bitfinex-derivatives/quotes_BNBF0:USTF0_20250101
["timestamp","ask_amount","ask_price","bid_price","bid_amount"]
[1735752031898,0.26162099,704.19,703.11,1.06473081]
[1735752032200,0.26162099,704.18,703.11,1.06473081]
[1735752032393,0.26162099,704.17,703.1,1.06473081]
[1735752032599,0.26162099,704.16,703.1,1.06473081]
[1735752032794,0.26162099,704.15,703.1,1.06473081]
[1735752033001,1.05845224,704.25,703.1,1.06473081]
[1735752033002,0.26162099,704.14,703.1,1.06473081]
[1735752033201,0.26162099,704.13,703.1,1.06473081]
[1735752033504,1.05845224,704.25,703.1,1.06473081]
[1735752033800,1.05845224,704.25,702.55,2.17339001]
[1735752033801,0.26160882,704.24,703.11,1.06473081]
[1735752033999,0.26159636,704.23,703.11,1.06473081]
[1735752034196,0.26159636,704.22,703.11,1.06473081]
[1735752034396,0.26159636,704.21,703.11,1.06473081]
[1735752034594,0.26159636,704.2,703.11,1.06473081]
[1735752034798,0.26159636,704.24,703.19,1.06473081]
[1735752034995,0.26159636,704.23,703.19,1.06473081]
[1735752035193,0.26159636,704.22,703.19,1.06473081]
[1735752035401,0.26159636,704.21,703.19,1.06473081]
[1735752035597,0.26159636,704.2,703.19,1.06473081]
[1735752035800,0.26159636,704.19,703.19,1.06473081]
[1735752035997,1.05845224,704.34,703.2,1.06473081]
[1735752037007,1.05845224,704.84,702.9,1.06473081]
[1735752037207,1.48358149,704.48,702.9,1.06473081]
[1735752037407,1.05845224,704.84,702.9,1.06473081]
[1735752037607,1.48366582,704.48,702.9,1.06473081]
[1735752037809,1.05845224,704.84,702.9,1.06473081]
[1735752038202,1.48366582,704.47,702.9,1.06473081]
[1735752038405,1.05845224,704.92,702.96,1.06473081]
[1735752038606,0.26154258,704.91,702.96,1.06473081]
[1735752039309,0.26152386,704.9,702.93,1.06473081]
[1735752039709,1.74492617,704.9,702.93,1.06473081]
[1735752039909,1.48340231,704.9,702.93,1.06473081]
[1735752041011,0.26150949,704.89,702.93,1.06473081]
[1735752041410,0.26150949,704.89,701.72,2.17339001]
[1735752041411,1.48340231,704.9,702.94,1.06473081]
[1735752041608,0.26150029,704.89,702.94,1.06473081]
[1735752041809,1.48340231,704.9,702.94,1.06473081]
[1735752042514,0.26150069,704.89,703.04,1.06473081]
[1735752042916,1.48340231,704.9,703.04,1.06473081]
[1735752043515,0.26149604,704.89,703.04,1.06473081]
[1735752043717,1.48340231,704.9,703.03,1.06473081]
[1735752044915,1.48340231,704.9,703.02,1.06473081]
[1735752044916,0.26149311,704.89,703.02,1.06473081]
[1735752046213,0.26149311,704.88,703.07,1.06473081]
[1735752046518,0.26149311,704.87,703.07,1.06473081]
[1735752046719,0.26149311,704.86,703.07,1.06473081]
[1735752047018,0.26149311,704.85,703.07,1.06473081]
[1735752047218,0.26149311,704.84,703.07,1.06473081]
[1735752047420,0.26149311,704.83,703.15,1.06473081]
[1735752047620,1.48340231,704.9,703.15,1.06473081]
[1735752047821,0.26147637,704.89,703.15,1.06473081]
[1735752048620,0.26147637,704.89,702.44,0.725015]
[1735752048621,0.26147637,704.89,703.14,1.06473081]
[1735752049718,1.48340231,704.9,703.15,0.28443433]
[1735752049922,0.28373623,704.88,703.15,0.28443433]
[1735752050115,0.26148034,704.87,703.15,0.28443433]
[1735752050715,0.28374831,704.85,703.15,0.28443433]
[1735752051022,0.26148034,704.84,703.15,0.28443433]
[1735752051915,0.28375636,704.83,703.15,0.28443433]
[1735752052120,0.26148034,704.82,703.15,0.28443433]
[1735752052320,0.28375636,704.83,703.21,1.06473081]
[1735752052321,0.28376441,704.81,703.21,1.06473081]
[1735752052521,0.26146473,704.8,703.22,0.28440601]
[1735752052822,0.28377247,704.79,703.22,0.28440601]
[1735752053021,0.26146473,704.78,703.22,0.28440601]
[1735752053220,0.28378052,704.77,703.22,0.28440601]
[1735752053420,0.26146473,704.76,703.22,0.28440601]
[1735752053615,0.28378857,704.75,703.22,0.28440601]
[1735752053821,0.26146473,704.74,703.22,0.28440601]
[1735752054021,0.28379663,704.73,703.22,0.28440601]
[1735752054221,0.26146473,704.72,703.22,0.28440601]
[1735752055015,0.26146311,704.71,703.22,0.28440601]
[1735752055218,0.26146311,704.7,703.22,0.28440601]
[1735752055418,0.26146311,704.69,703.22,0.28440601]
[1735752055614,0.26146311,704.68,703.22,0.28440601]
[1735752055821,0.28379663,704.73,703.22,0.28440601]
[1735752055822,0.26147911,704.67,703.22,0.28440601]
[1735752056019,0.26147911,704.66,703.22,0.28440601]
[1735752056219,0.26147911,704.65,703.22,0.28440601]
[1735752056415,0.26147911,704.64,703.22,0.28440601]
[1735752056617,0.26147911,704.63,703.22,0.28440601]
[1735752056821,0.26147911,704.62,703.22,0.28440601]
[1735752057021,0.26147911,704.61,703.22,0.28440601]
[1735752057325,0.26147911,704.6,703.22,1.34913682]
[1735752057523,0.26147911,704.59,703.22,1.34913682]
[1735752057716,0.26148071,704.58,703.22,1.34913682]
[1735752058022,0.26148071,704.57,703.22,1.34913682]
[1735752058319,0.26148071,704.56,703.22,1.34913682]
[1735752058520,0.26148071,704.55,703.22,1.34913682]
[1735752058717,0.26148071,704.54,703.22,1.34913682]
[1735752058921,0.26148071,704.53,703.22,1.34913682]
[1735752059124,0.28379663,704.73,703.22,1.34913682]
[1735752059324,0.26148031,704.72,703.22,1.34913682]
[1735752060418,0.26146755,704.71,703.22,1.34913682]
[1735752060620,0.26146755,704.7,703.22,1.34913682]
[1735752060925,0.26146755,704.69,703.28,1.06473081]
[1735752061123,0.26146755,704.68,703.28,1.06473081]
[1735752061324,0.26146755,704.67,703.28,1.06473081]
[1735752061523,0.26146755,704.66,703.28,1.06473081]
[1735752061825,0.26146755,704.65,703.28,1.06473081]
[1735752062026,0.2614574,704.64,703.28,1.06473081]
[1735752062219,0.26145545,704.63,703.33,1.06473081]
[1735752062423,0.26145545,704.62,703.33,1.06473081]
[1735752062624,0.28379663,704.73,703.33,1.06473081]
[1735752062820,1.48311781,704.62,703.33,1.06473081]
[1735752063021,0.26146747,704.61,703.33,1.06473081]
[1735752063222,1.48317576,704.61,703.26,1.06473081]
[1735752063625,0.26147037,704.6,703.26,1.06473081]
[1735752064831,1.48317576,704.61,703.23,1.06473081]
[1735752064832,0.26147821,704.59,703.23,1.06473081]
[1735752065022,1.48317576,704.61,703.23,1.06473081]
[1735752065222,0.26147794,704.6,703.23,1.06473081]
[1735752065832,0.26147794,704.6,703.26,1.06473081]
[1735752066630,0.26147794,704.6,703.27,0.28438579]
[1735752066828,0.26147794,704.6,703.29,1.06473081]
[1735752067025,1.48317576,704.61,703.29,1.06473081]
[1735752068032,1.48317576,704.61,703.33,1.06473081]
[1735752068033,0.2614719,704.6,703.33,1.06473081]
[1735752069037,0.2614719,704.6,703.36,1.06473081]
[1735752069232,1.48317576,704.61,703.36,1.06473081]
[1735752070135,0.26147677,704.6,703.39,1.06473081]
[1735752070736,1.48317576,704.61,703.39,1.06473081]
[1735752071137,1.48317576,704.61,703.42,1.06473081]
[1735752071537,0.2614727,704.6,703.42,1.06473081]
[1735752071839,1.48317576,704.61,703.42,1.06473081]
[1735752072341,0.26145749,704.6,703.5,1.06473081]
[1735752072737,1.48317576,704.61,703.5,1.06473081]
[1735752072936,0.26145432,704.6,703.5,1.06473081]
[1735752073644,0.26145432,704.6,703.67,1.06473081]
[1735752074339,1.05845224,704.61,703.67,1.06473081]
[1735752074543,1.05845224,704.64,703.74,1.06473081]
[1735752075544,1.48292822,704.71,703.41,1.06473081]
[1735752076739,1.48292822,704.71,703.39,1.06473081]
[1735752077641,0.26147803,704.7,703.39,1.06473081]
[1735752078044,0.26147794,704.69,703.39,1.06473081]
[1735752078243,1.48292822,704.71,703.39,1.06473081]
[1735752078244,0.26147794,704.68,703.39,1.06473081]
[1735752078444,0.26147794,704.67,703.39,1.06473081]
[1735752078643,0.26147794,704.7,703.39,1.06473081]
[1735752078941,1.05845224,704.59,703.55,1.06473081]
[1735752079140,0.26147794,704.58,703.55,1.06473081]
[1735752079950,1.05845224,704.54,703.61,1.06473081]
[1735752080245,0.26147794,704.53,703.61,1.06473081]
[1735752081149,1.05845224,704.5,703.58,1.06473081]
[1735752081450,0.26147794,704.49,703.58,1.06473081]
[1735752082049,1.05845224,704.5,703.58,1.06473081]
[1735752082452,1.05845224,704.47,703.53,1.06473081]
[1735752083446,1.05845224,704.56,703.47,1.06473081]
[1735752083651,0.26150831,704.55,703.47,1.06473081]
[1735752084452,1.48322844,704.54,703.47,1.06473081]
[1735752084845,1.48322844,704.54,703.45,1.06473081]
[1735752085951,1.48322844,704.54,703.44,1.06473081]
[1735752086750,0.26151596,704.53,703.44,1.06473081]
[1735752086954,1.48322844,704.54,703.44,1.06473081]
[1735752087553,0.26151584,704.53,703.44,1.06473081]
[1735752088454,0.26151584,704.53,703.42,1.06473081]
[1735752088655,0.26152988,704.52,703.42,1.06473081]
[1735752088855,0.26152988,704.51,703.42,1.06473081]
[1735752089048,0.26153201,704.5,703.42,1.06473081]
[1735752089354,0.26153201,704.49,703.42,1.06473081]
[1735752089554,0.26153201,704.48,703.37,1.06473081]
[1735752089751,0.26153201,704.47,703.37,1.06473081]
[1735752089956,0.26153201,704.46,703.37,1.06473081]
[1735752090157,1.05845224,704.5,703.37,1.06473081]
[1735752090158,0.26153201,704.45,703.37,1.06473081]
[1735752090455,0.26153201,704.44,703.37,1.06473081]
[1735752090658,1.05845224,704.41,703.43,1.06473081]
[1735752090854,0.26153201,704.4,703.43,1.06473081]
[1735752091257,0.26155315,704.39,703.43,1.06473081]
[1735752091553,0.26155315,704.38,703.43,1.06473081]
[1735752091749,0.26155315,704.37,703.43,1.06473081]
[1735752092056,0.26155315,704.36,703.36,1.06473081]
[1735752092254,0.26155315,704.35,703.36,1.06473081]
[1735752092455,0.26155315,704.34,703.36,1.06473081]
[1735752092656,0.26155315,704.33,703.36,1.06473081]
[1735752092853,1.05845224,704.43,703.35,1.06473081]
[1735752093158,0.26152412,704.42,703.35,1.06473081]
[1735752094059,0.26152412,704.42,703.27,0.28438579]
[1735752094060,1.05845224,704.52,703.45,1.06473081]
[1735752095059,1.05845224,704.66,703.53,1.06473081]
[1735752095259,1.48309148,704.62,703.53,1.06473081]
[1735752096151,1.48309148,704.62,703.6,1.06473081]
[1735752096960,1.05845224,704.79,703.6,1.06473081]
[1735752097159,1.48287556,704.7,703.57,1.06473081]
[1735752098763,1.48287556,704.7,703.61,1.06473081]
[1735752099965,1.48287556,704.7,703.62,1.06473081]
[1735752100867,1.48287556,704.7,703.58,1.06473081]
[1735752102160,1.48287556,704.7,703.33,1.06473081]
[1735752103468,1.48287556,704.7,703.35,1.06473081]
[1735752104369,1.48287556,704.7,703.34,1.06473081]
[1735752105770,1.48287556,704.7,703.33,1.06473081]
[1735752107168,1.48287556,704.7,703.31,1.06473081]
[1735752108369,1.48287556,704.7,703.32,0.28436558]
[1735752112773,1.48287556,704.7,703.52,1.06473081]
[1735752113274,0.26140419,704.69,703.52,1.06473081]
[1735752114876,0.26139817,704.68,703.52,1.06473081]
[1735752115079,0.26139817,704.67,703.54,1.06473081]
[1735752115375,1.48287556,704.7,703.54,1.06473081]
[1735752115574,0.26140017,704.69,703.54,1.06473081]
[1735752115972,1.48287556,704.7,703.54,1.06473081]
[1735752116177,1.48287556,704.7,703.57,1.06473081]
[1735752117380,1.48287556,704.7,703.38,1.06451755]
[1735752117381,1.48287556,704.7,703.37,1.06473081]
[1735752118480,1.48287556,704.7,703.38,1.06473081]
[1735752119277,1.48287556,704.7,703.37,1.06473081]
[1735752119981,1.05845224,705.2,703.37,1.06473081]
[1735752120384,1.48288082,704.77,703.37,1.06473081]
[1735752120579,1.48288082,704.77,703.4,1.06473081]
[1735752122085,1.48288082,704.77,703.41,1.06473081]
[1735752122987,1.48288082,704.77,703.39,1.06473081]
[1735752124187,1.48288082,704.77,703.59,1.06473081]
[1735752125184,1.48288082,704.77,703.61,1.06473081]
[1735752126188,1.48288082,704.77,703.65,1.06473081]
[1735752127083,1.48288082,704.77,703.67,1.06473081]
[1735752128187,1.48288082,704.77,703.69,1.06473081]
[1735752129090,1.48288082,704.77,703.74,1.06473081]
[1735752130289,1.48288082,704.77,703.83,1.06473081]
[1735752131290,1.48288082,704.77,703.33,2.0010457]
[1735752131291,1.48288082,704.77,703.81,1.06473081]
[1735752132493,1.48288082,704.77,703.33,0.72362464]
[1735752132494,1.48288082,704.77,703.82,1.06473081]
[1735752133992,1.48288082,704.77,703.61,1.06451755]
[1735752133993,1.48288082,704.77,703.84,1.06473081]
[1735752134894,1.48288082,704.77,703.82,1.06473081]
[1735752135994,1.48288082,704.77,703.81,1.06473081]
[1735752137195,1.05845224,704.97,703.82,1.06473081]
[1735752137388,1.48249653,704.88,703.82,1.06473081]
[1735752138489,5.06676518,712.5,703.33,0.72362464]
[1735752138490,1.05845224,705.03,703.85,1.06473081]
[1735752138691,1.48234918,704.96,703.85,1.06473081]
[1735752139694,1.48234918,704.96,703.89,1.06473081]
[1735752140896,1.48234918,704.96,703.9,1.06473081]
[1735752142190,1.48234918,704.96,703.89,1.06473081]
[1735752143093,1.48234918,704.96,703.84,1.06473081]
[1735752144097,1.48234918,704.96,703.87,1.06473081]
[1735752145196,1.48234918,704.96,703.85,1.06473081]
[1735752146797,1.48234918,704.96,703.88,1.06473081]
[1735752147798,1.48234918,704.96,703.89,1.06473081]
[1735752148193,1.05845224,705.2,703.89,1.06473081]
[1735752148398,1.48222817,705.0,703.89,1.06473081]
[1735752148795,0.2836115,705.19,703.89,1.06473081]
[1735752148995,0.2836115,705.19,703.33,0.72362464]
[1735752148996,1.48220713,705.0,703.9,1.06473081]
[1735752149196,0.2836115,705.19,703.9,1.06473081]
[1735752149398,0.26130236,705.18,703.9,1.06473081]
[1735752150498,1.48210192,705.17,703.9,1.06473081]
[1735752150800,0.26129736,705.16,703.9,1.06473081]
[1735752151499,0.26129736,705.16,703.92,1.06473081]
[1735752153101,0.26129736,705.16,703.9,1.06473081]
[1735752154002,0.26129736,705.16,703.91,1.06473081]
[1735752155301,0.26129736,705.16,703.9,1.06473081]
[1735752156100,0.2612857,705.15,703.9,1.06473081]
[1735752156298,0.2612857,705.14,703.91,1.06473081]
[1735752156501,0.2612857,705.13,703.91,1.06473081]
[1735752156697,1.48210192,705.17,703.91,1.06473081]
[1735752156902,0.26128466,705.16,703.91,1.06473081]
[1735752158504,0.26128466,705.16,703.33,2.0010457]
[1735752158505,0.26128466,705.16,703.92,1.06473081]
[1735752158701,0.26128136,705.15,703.92,1.06473081]
[1735752158898,0.26128136,705.14,703.92,1.06473081]
[1735752159100,0.26128136,705.13,703.92,1.06473081]
[1735752159297,1.48210192,705.17,703.92,1.06473081]
[1735752159503,0.26128116,705.16,703.92,1.06473081]
[1735752159705,0.26128116,705.16,703.93,1.06473081]
[1735752161508,0.26127821,705.15,703.93,1.06473081]
[1735752161709,0.26127821,705.14,703.93,1.06473081]
[1735752161909,0.26127821,705.13,703.93,1.06473081]
[1735752162105,0.26127821,705.12,703.93,1.06473081]
[1735752162307,0.26127821,705.11,703.93,1.06473081]
[1735752162508,0.26127821,705.1,703.93,1.06473081]
[1735752162811,0.26127821,705.09,703.93,1.06473081]
[1735752163109,0.26127821,705.08,703.93,1.06473081]
[1735752163612,0.26127821,705.08,704.01,1.06473081]
[1735752164004,0.26129866,705.07,704.01,1.06473081]
[1735752164311,0.26129866,705.06,704.01,1.06473081]
[1735752164512,0.26129866,705.05,704.01,1.06473081]
[1735752164810,0.26129866,705.04,704.01,1.06473081]
[1735752165013,0.26129866,705.03,704.01,1.06473081]
[1735752165311,0.26129495,705.02,704.02,1.06473081]
[1735752165511,1.48209666,705.09,704.02,1.06473081]
[1735752165706,0.26129735,705.08,704.02,1.06473081]
[1735752165911,0.26129735,705.08,703.96,1.06473081]
[1735752166710,0.26128852,705.07,704.0,1.06473081]
[1735752167006,0.26128852,705.06,704.0,1.06473081]
[1735752167212,0.26128852,705.05,704.0,1.06473081]
[1735752167507,1.48209666,705.09,704.0,1.06473081]
[1735752167713,1.48209666,705.09,704.01,1.06473081]
[1735752168914,1.48209666,705.09,703.96,1.06473081]
[1735752170114,1.48209666,705.09,703.99,1.06473081]
[1735752171214,1.48209666,705.09,704.0,1.06473081]
[1735752172415,1.48209666,705.09,704.04,1.06473081]
[1735752173516,1.48209666,705.09,704.05,1.06473081]
[1735752174816,1.48209666,705.09,704.06,1.06473081]
[1735752175317,0.26129023,705.08,704.06,1.06473081]
[1735752175916,0.26129023,705.08,704.07,1.06473081]
[1735752176315,1.48209666,705.09,704.07,1.06473081]
[1735752177318,2.5405489,705.09,704.11,1.06473081]
[1735752177520,0.26128308,705.08,704.11,1.06473081]
[1735752178317,1.05845224,705.04,704.17,1.06473081]
[1735752178521,0.26128308,705.03,704.17,1.06473081]
[1735752179420,0.26128308,705.03,703.6,2.17339001]
[1735752179421,1.05845224,704.99,704.18,1.06473081]
[1735752179720,0.26128308,704.98,704.18,1.06473081]
[1735752179913,1.05845224,704.99,704.18,1.06473081]
[1735752180119,0.26128888,704.98,704.18,1.06473081]
[1735752180620,1.05845224,704.99,704.19,1.06473081]
[1735752181627,1.48205984,705.0,703.95,1.06473081]
[1735752182517,0.2613402,704.99,703.95,1.06473081]
[1735752182718,1.48205984,705.0,703.95,1.06473081]
[1735752183227,1.05845224,704.97,703.94,1.06473081]
[1735752184126,1.48205984,705.0,703.87,1.06473081]
[1735752185424,1.48205984,705.0,703.96,1.06473081]
[1735752186627,1.48205984,705.0,704.0,1.06473081]
[1735752189422,1.05845224,705.07,704.0,1.06473081]
[1735752189625,1.48208614,705.09,703.99,1.06473081]
[1735752190825,1.48208614,705.09,704.12,1.06473081]
[1735752192321,1.48208614,705.09,704.15,1.06473081]
[1735752193629,1.48208614,705.09,704.14,1.06473081]
[1735752195627,1.48208614,705.09,704.15,1.06473081]
[1735752196725,1.48208614,705.09,704.01,1.06473081]
[1735752201335,1.48208614,705.09,704.03,1.06473081]
[1735752202135,1.48208614,705.09,703.75,1.06451755]
[1735752202136,1.48208614,705.09,704.02,1.06473081]
[1735752203140,1.48208614,705.09,704.01,1.06473081]
[1735752204641,1.48208614,705.09,704.03,1.06473081]
[1735752207143,1.48208614,705.09,703.42,3.35488121]
[1735752207144,1.48208614,705.09,704.09,1.06473081]
[1735752208441,1.48208614,705.09,699.61,2.50810367]
[1735752208442,1.48208614,705.09,704.1,1.06473081]
[1735752209540,1.48208614,705.09,704.11,1.06473081]
[1735752210545,1.48208614,705.09,704.09,1.06473081]
[1735752212545,1.48208614,705.09,703.45,2.17339001]
[1735752212546,1.48208614,705.09,704.1,1.06473081]
[1735752213550,1.48208614,705.09,704.19,1.06473081]
[1735752214548,1.48208614,705.09,704.15,1.06473081]
[1735752215544,1.48208614,705.09,704.14,1.06473081]
[1735752216547,1.48208614,705.09,704.13,1.06473081]
[1735752218048,1.48208614,705.09,704.15,1.06473081]
[1735752218448,0.26124631,705.08,704.15,1.06473081]
[1735752219049,1.48208614,705.09,703.71,0.85304101]
[1735752219050,1.48208614,705.09,704.2,1.06473081]
[1735752220248,1.48208614,705.09,704.24,1.06473081]
[1735752221749,1.48208614,705.09,704.25,1.06473081]
[1735752222651,1.34206374,705.19,704.25,1.06473081]
[1735752222851,1.05845224,705.18,704.27,1.06473081]
[1735752223045,1.48181267,705.15,704.27,1.06473081]
[1735752223950,1.48181267,705.15,704.32,1.06473081]
[1735752225154,1.48181267,705.15,704.31,1.06473081]
[1735752227753,1.48181267,705.15,703.7,2.17339001]
[1735752227754,1.48181267,705.15,704.29,1.06473081]
[1735752229859,1.48181267,705.15,704.28,1.06473081]
[1735752232256,1.48181267,705.15,704.29,1.06473081]
[1735752233456,1.48181267,705.15,703.69,2.17339001]
[1735752233457,1.48181267,705.15,704.36,1.06473081]
[1735752234359,0.26122108,705.14,704.36,1.06473081]
[1735752234757,1.48181267,705.15,704.35,1.06473081]
[1735752235759,1.48181267,705.15,704.36,1.06473081]
[1735752238359,1.48181267,705.15,704.37,1.06473081]
[1735752238562,0.2836115,705.19,704.37,1.06473081]
[1735752239561,0.2836115,705.19,704.44,1.06473081]
[1735752240264,1.05845224,705.33,704.44,1.06473081]
[1735752240964,1.48133434,705.42,704.44,1.06473081]
[1735752240965,1.05845224,705.4,704.44,1.06473081]
[1735752242162,1.48133434,705.42,704.22,1.06473081]
[1735752243056,0.28352305,705.41,704.22,1.06473081]
[1735752243259,0.28352305,705.41,704.14,1.06473081]
[1735752244368,0.28352305,705.41,704.11,1.06473081]
[1735752245369,0.28352305,705.41,704.12,1.06473081]
[1735752247466,0.28352305,705.41,704.14,1.06473081]
[1735752248566,0.28352305,705.41,704.09,1.06473081]
[1735752249572,0.28352305,705.41,704.1,1.06473081]
[1735752250775,0.28352305,705.41,704.11,1.06473081]
[1735752251974,0.28352305,705.41,704.16,1.06473081]
[1735752252369,0.2612038,705.4,704.16,1.06473081]
[1735752253067,0.26120336,705.39,704.21,1.06473081]
[1735752253272,0.26120336,705.38,704.21,1.06473081]
[1735752253473,0.26120336,705.37,704.21,1.06473081]
[1735752253674,0.28352305,705.41,704.21,1.06473081]
[1735752253874,0.26120204,705.4,704.21,1.06473081]
[1735752254475,1.31965428,705.4,704.23,1.06473081]
[1735752254666,0.26120204,705.39,704.23,1.06473081]
[1735752255474,1.31965428,705.39,704.24,1.06473081]
[1735752255674,0.26120685,705.38,704.24,1.06473081]
[1735752256470,1.05845224,705.37,704.24,1.06473081]
[1735752256967,0.26120337,705.36,704.24,1.06473081]
[1735752257575,1.05845224,705.38,704.24,1.06473081]
[1735752257775,0.26120705,705.37,704.24,1.06473081]
[1735752258380,0.26120603,705.36,704.24,1.06473081]
[1735752258874,1.05845224,705.37,704.24,1.06473081]
[1735752259975,0.26119676,705.36,704.24,1.06473081]
[1735752260386,0.26119676,705.36,704.26,1.06473081]
[1735752260680,0.26119676,705.35,704.26,1.06473081]
[1735752260880,0.26119676,705.34,704.26,1.06473081]
[1735752261081,0.26120115,705.33,704.26,1.06473081]
[1735752261281,0.26120115,705.32,704.26,1.06473081]
[1735752261781,0.26120115,705.32,704.3,1.06473081]
[1735752262578,1.48154455,705.33,704.3,1.06473081]
[1735752262775,1.05845224,705.32,704.31,1.06473081]
[1735752263781,1.48154455,705.33,704.33,1.06473081]
[1735752265684,1.48154455,705.33,704.34,1.06473081]
[1735752266780,1.48154455,705.33,704.37,1.06473081]
[1735752266984,1.05845224,705.39,704.37,1.06473081]
[1735752267184,0.26116602,705.38,704.37,1.06473081]
[1735752267385,1.48147623,705.32,704.37,1.06473081]
[1735752267580,1.05845224,705.39,704.37,1.06473081]
[1735752267983,1.05845224,705.39,704.41,1.06473081]
[1735752269084,0.28352305,705.41,704.46,1.06473081]
[1735752269883,0.28352305,705.41,703.9,1.27742106]
[1735752269884,0.28352305,705.41,704.45,1.06473081]
[1735752271187,0.28352305,705.41,704.41,1.06473081]
[1735752272390,0.28352305,705.41,704.39,1.06473081]
[1735752274391,0.28352305,705.41,704.35,1.06473081]
[1735752275892,0.28352305,705.41,704.33,1.06473081]
[1735752276992,0.28352305,705.41,704.3,1.06473081]
[1735752278394,0.28352305,705.41,704.26,1.06473081]
[1735752279594,0.28352305,705.41,704.27,1.06473081]
[1735752280491,0.28352305,705.41,704.28,1.06473081]
[1735752281598,0.28352305,705.41,704.27,1.06473081]
[1735752285201,0.28352305,705.41,704.3,1.06473081]
[1735752286193,0.28352305,705.41,704.29,1.06473081]
[1735752287094,0.28352305,705.41,704.36,1.06473081]
[1735752287597,0.26113612,705.4,704.36,1.06473081]
[1735752287994,0.28352305,705.41,704.39,1.06473081]
[1735752287995,0.26113608,705.39,704.39,1.06473081]
[1735752288197,0.26113608,705.38,704.39,1.06473081]
[1735752288402,0.26113608,705.37,704.39,1.06473081]
[1735752288603,0.26113608,705.36,704.39,1.06473081]
[1735752288804,0.26113608,705.35,704.39,1.06473081]
[1735752289100,0.26113608,705.35,704.17,1.06451755]
[1735752289101,0.26113608,705.34,704.46,1.06473081]
[1735752289404,0.26113608,705.33,704.46,1.06473081]
[1735752289604,0.28352305,705.41,704.46,1.06473081]
[1735752289902,0.26115177,705.4,704.46,1.06473081]
[1735752290404,0.26115177,705.4,704.43,1.06473081]
[1735752290605,0.26114855,705.39,704.43,1.06473081]
[1735752290800,0.28352305,705.41,704.43,1.06473081]
[1735752290801,0.26114855,705.38,704.43,1.06473081]
[1735752291001,0.26114855,705.37,704.43,1.06473081]
[1735752291196,0.28352305,705.41,704.43,1.06473081]
[1735752291398,0.26114939,705.4,704.43,1.06473081]
[1735752291602,0.26114939,705.4,704.44,1.06473081]
[1735752292608,0.26114939,705.4,704.42,1.06473081]
[1735752293106,0.28352305,705.41,704.42,1.06473081]
[1735752293706,0.28352305,705.41,704.43,1.06473081]
[1735752295108,0.28352305,705.41,704.29,1.06473081]
[1735752295909,0.28352305,705.41,704.28,1.06473081]
[1735752296704,0.28352305,705.41,704.27,1.06473081]
[1735752298110,0.28352305,705.41,704.28,1.06473081]
[1735752299310,0.28352305,705.41,704.31,1.06473081]
[1735752300611,0.28352305,705.41,704.3,1.06473081]
[1735752301911,0.28352305,705.41,704.04,0.28407476]
[1735752303115,1.34197529,705.41,704.27,1.06473081]
[1735752303417,0.26119316,705.4,704.27,1.06473081]
[1735752303616,1.34197529,705.41,704.27,1.06473081]
[1735752304315,1.34197529,705.41,704.26,1.06473081]
[1735752304714,1.48157083,705.4,704.26,1.06473081]
[1735752305014,0.28353109,705.39,704.26,1.06473081]
[1735752305314,0.28353109,705.39,704.04,0.28407476]
[1735752305315,0.28353109,705.39,704.22,1.06473081]
[1735752306310,0.28353109,705.39,704.27,1.06473081]
[1735752307416,0.28353109,705.39,704.29,1.06473081]
[1735752307717,0.26115191,705.38,704.29,1.06473081]
[1735752308511,0.26114975,705.37,704.46,1.06473081]
[1735752308715,0.26114975,705.36,704.46,1.06473081]
[1735752308915,0.26114975,705.35,704.46,1.06473081]
[1735752309116,0.28353109,705.39,704.46,1.06473081]
[1735752309318,0.26115104,705.38,704.46,1.06473081]
[1735752309516,0.26115104,705.38,704.47,1.06473081]
[1735752310517,0.26115104,705.38,704.45,1.06473081]
[1735752311117,0.26115656,705.37,704.45,1.06473081]
[1735752311313,0.28353109,705.39,704.45,1.06473081]
[1735752312519,0.28353109,705.39,704.21,1.06473081]
[1735752313720,0.28353109,705.39,704.04,0.28407476]
[1735752313721,0.28353109,705.39,704.08,1.06473081]
[1735752315222,0.28353109,705.39,704.04,0.28407476]
[1735752315223,0.28353109,705.39,704.05,1.06473081]
[1735752316322,0.28353109,705.39,704.04,0.28407476]
[1735752319825,0.28353109,705.39,704.09,1.06473081]
[1735752320828,0.28353109,705.39,704.18,1.06473081]
[1735752322132,0.28353109,705.39,704.19,1.06473081]
[1735752323234,0.28353109,705.39,704.35,1.06473081]
[1735752324237,0.28353109,705.39,704.36,1.06473081]
[1735752324431,0.26115111,705.38,704.36,1.06473081]
[1735752324733,0.28353109,705.39,704.36,1.06473081]
[1735752325331,0.26114812,705.38,704.42,1.06473081]
[1735752326632,0.26114812,705.38,704.41,1.06473081]
[1735752327431,0.28353109,705.39,704.41,1.06473081]
[1735752327630,0.28353109,705.39,704.43,1.06473081]
[1735752328834,0.28353109,705.39,704.28,1.06473081]
[1735752331141,0.28353109,705.39,704.29,1.06473081]
[1735752333843,0.28353109,705.39,704.31,1.06473081]
[1735752334540,0.28353109,705.39,704.04,0.28407476]
[1735752334541,0.28353109,705.39,704.29,1.06473081]
[1735752335642,0.28353109,705.39,704.32,1.06473081]
[1735752336745,0.28353109,705.39,704.31,1.06473081]
[1735752337640,0.28353109,705.39,704.25,1.06473081]
[1735752338346,0.28353109,705.39,704.04,0.28407476]
[1735752338347,0.28353109,705.39,704.32,1.06473081]
[1735752339745,0.28353109,705.39,704.34,1.06473081]